bitfinex/quotes_SOLUSD_20251117
["timestamp","ask_amount","ask_price","bid_price","bid_amount"]
[1763361669104,0.7,141.12,141.09,2.81769963]
[1763361669498,0.7,141.12,141.09,3.53769963]
[1763361670504,0.7,141.12,141.08,7.08816029]
[1763361670708,0.7,141.12,141.09,3.53769963]
[1763361671811,0.7,141.12,141.1,2.81769963]
[1763361673629,0.7,141.12,141.07,22.6512]
[1763361673794,2.81769963,141.1,141.05,2.81769963]
[1763361673990,2.81769963,141.09,141.04,2.81769963]
[1763361674517,0.7,141.08,141.04,2.81769963]
[1763361674715,2.81769963,141.07,141.03,17.04]
[1763361675212,0.7,141.06,141.03,17.04]
[1763361675413,3.51769963,141.06,141.03,17.04]
[1763361675907,0.7,141.05,141.03,17.04]
[1763361676991,3.51769963,141.05,141.03,17.04]
[1763361677522,0.7,141.04,141.03,17.04]
[1763361680720,2.50644233,141.04,141.03,17.04]
[1763361683720,0.7,141.04,141.03,17.04]
[1763361683904,2.50644233,141.04,141.03,17.04]
[1763361690238,0.7,141.04,141.03,17.04]
[1763361690530,2.50644233,141.04,141.03,17.04]
[1763361692224,2.50644233,141.04,140.99,2.52644233]
[1763361692423,0.69,141.03,140.99,2.52644233]
[1763361695652,2.49644233,141.03,140.99,0.72]
[1763361695838,0.69,141.02,140.99,2.52644233]
[1763361696745,0.69,141.02,140.98,2.52644233]
[1763361697126,0.69,141.02,140.99,1.80644233]
[1763361697449,0.69,141.02,140.99,2.52644233]
[1763361702447,104.9,141.05,141.0,1.80644233]
[1763361702655,104.9,141.05,141.03,1.80644233]
[1763361702827,2.49644233,141.07,141.03,2.52644233]
[1763361702828,1.80644233,141.07,141.03,2.52644233]
[1763361703032,0.69,141.06,141.03,2.52644233]
[1763361703335,2.49644233,141.06,141.01,2.52644233]
[1763361703826,0.69,141.05,141.01,1.80644233]
[1763361704032,0.69,141.05,141.02,0.72]
[1763361704331,0.69,141.05,140.99,29.74376602]
[1763361704332,0.69,141.05,141.0,0.72]
[1763361704652,0.69,141.05,141.01,1.80644233]
[1763361704852,0.69,141.05,141.02,1.80644233]
[1763361705640,0.69,141.05,141.02,2.52644233]
[1763361706369,0.69,141.06,141.02,1.80644233]
[1763361706536,0.69,141.06,141.02,0.72]
[1763361706937,0.69,141.06,141.02,2.52644233]
[1763361707335,0.69,141.06,141.03,0.72]
[1763361707758,0.69,141.06,141.02,2.52644233]
[1763361708562,0.69,141.06,141.02,0.72]
[1763361708764,0.69,141.06,141.02,2.52644233]
[1763361709061,2.49644233,141.06,141.02,2.52644233]
[1763361709465,0.69,141.06,141.02,2.52644233]
[1763361709777,0.69,141.05,141.02,2.52644233]
[1763361711662,0.69,141.05,141.02,0.72]
[1763361713554,0.69,141.05,141.02,2.52644233]
[1763361715762,1.80644233,141.06,141.02,1.80644233]
[1763361715964,9.78882769,141.08,141.02,1.80644233]
[1763361716261,0.69,141.06,141.02,8.89760645]
[1763361716465,0.69,141.06,141.02,9.61760645]
[1763361717048,2.49644233,141.08,141.03,2.52644233]
[1763361717262,0.69,141.07,141.04,0.72]
[1763361717566,2.49644233,141.07,141.03,0.72]
[1763361717765,2.49644233,141.07,141.03,23.3712]
[1763361717964,0.69,141.06,141.03,23.3712]
[1763361718971,2.49644233,141.06,141.03,23.3712]
[1763361719350,1.80644233,141.06,141.03,22.6512]
[1763361719561,2.49644233,141.06,141.03,22.6512]
[1763361720263,0.69,141.06,141.03,23.3712]
[1763361720566,0.69,141.05,141.03,22.6512]
[1763361720766,2.49644233,141.05,141.01,0.66]
[1763361721150,0.69,141.04,141.01,0.66]
[1763361722466,0.69,141.05,141.01,0.66]
[1763361722772,0.69,141.05,141.01,2.46644233]
[1763361722950,0.69,141.05,141.02,0.66]
[1763361723873,0.69,141.05,141.01,2.46644233]
[1763361725492,2.49644233,141.05,141.0,24.45764233]
[1763361725989,0.69,141.04,141.0,24.45764233]
[1763361727177,2.49644233,141.04,141.0,22.6512]
[1763361727583,2.49644233,141.03,140.98,1.80644233]
[1763361727776,1.80644233,141.02,140.97,2.46644233]
[1763361727974,1.80644233,141.01,140.96,39.82302244]
[1763361728178,0.69,141.0,140.96,18.84644233]
[1763361728484,0.69,141.0,140.96,19.50644233]
[1763361729161,0.69,141.0,140.97,1.80644233]
[1763361729368,0.69,141.0,140.96,19.50644233]
[1763361730099,2.49644233,141.02,140.98,1.80644233]
[1763361730394,2.49644233,141.03,140.98,1.80644233]
[1763361730769,0.69,141.02,140.98,2.46644233]
[1763361732495,2.49644233,141.03,140.99,0.66]
[1763361732785,1.80644233,141.03,140.99,0.66]
[1763361732985,1.80644233,141.03,140.98,1.80644233]
[1763361732986,0.69,141.02,140.98,1.80644233]
[1763361733188,0.69,141.02,140.98,2.46644233]
[1763361733391,2.49644233,141.02,140.98,2.46644233]
[1763361733781,0.69,141.01,140.98,2.46644233]
[1763361734875,2.49644233,141.02,140.98,2.46644233]
[1763361735076,0.69,141.01,140.98,2.46644233]
[1763361736298,0.69,141.01,140.98,0.66]
[1763361736598,0.69,141.01,140.98,2.46644233]
[1763361736995,0.68,141.02,140.98,2.46644233]
[1763361738799,0.68,141.02,140.98,3.48337531]
[1763361743604,3.50337531,141.02,140.98,0.66]
[1763361744306,0.68,141.02,140.98,0.68]
[1763361744604,0.68,141.01,140.98,0.68]
[1763361746307,0.68,141.01,140.97,9.91700778]
[1763361746491,0.68,141.01,140.97,2.82337531]
[1763361747005,0.68,141.01,140.97,3.50337531]
[1763361747807,0.68,141.01,140.98,3.50337531]
[1763361748110,0.68,141.03,140.99,2.82337531]
[1763361748405,0.68,141.03,141.0,2.82337531]
[1763361748579,104.9,141.05,141.01,2.82337531]
[1763361748901,105.58,141.05,141.02,2.82337531]
[1763361749090,105.58,141.05,141.02,3.50337531]
[1763361749692,0.68,141.05,141.02,3.50337531]
[1763361750609,0.68,141.05,141.02,2.82337531]
[1763361755618,0.68,141.05,141.02,3.54337531]
[1763361755786,3.49337531,141.06,141.02,3.54337531]
[1763361756112,0.67,141.06,141.02,3.54337531]
[1763361756415,0.67,141.06,141.02,2.82337531]
[1763361756582,0.67,141.06,141.03,3.54337531]
[1763361757203,0.67,141.06,141.04,2.82337531]
[1763361757591,0.67,141.06,141.03,3.54337531]
[1763361758697,0.67,141.06,141.03,0.72]
[1763361759319,3.49337531,141.06,141.01,26.19457531]
[1763361759487,2.82337531,141.05,141.01,0.72]
[1763361759823,3.49337531,141.05,141.0,10.63535946]
[1763361759996,3.49337531,141.04,141.0,2.82337531]
[1763361760321,3.49337531,141.04,141.01,22.6512]
[1763361760621,0.67,141.03,141.01,22.6512]
[1763361761195,0.67,141.03,141.0,3.54337531]
[1763361761196,0.67,141.08,141.02,26.19457531]
[1763361761416,0.67,141.08,141.06,2.82337531]
[1763361763698,3.49337531,141.08,141.04,25.47457531]
[1763361764115,0.67,141.07,141.04,25.47457531]
[1763361765316,0.67,141.07,141.04,26.19457531]
[1763361765810,0.67,141.07,141.05,2.82337531]
[1763361766408,0.67,141.07,141.04,22.6512]
[1763361766616,0.67,141.07,141.04,25.47457531]
[1763361767310,0.67,141.07,141.04,22.6512]
[1763361767636,0.67,141.07,141.04,25.47457531]
[1763361768632,0.67,141.07,141.04,22.6512]
[1763361769006,0.67,141.07,141.04,25.47457531]
[1763361769427,2.82337531,141.1,141.05,2.82337531]
[1763361769631,0.67,141.08,141.05,2.82337531]
[1763361770929,0.67,141.08,141.02,30.46227219]
[1763361771108,0.67,141.08,141.04,2.82337531]
[1763361771302,0.67,141.08,141.03,2.82337531]
[1763361772033,0.67,141.08,141.04,2.82337531]
[1763361772927,2.82337531,141.07,141.02,22.6512]
[1763361773130,2.82337531,141.06,141.02,22.6512]
[1763361773310,2.82337531,141.06,141.0,2.82337531]
[1763361773505,3.49337531,141.05,141.0,2.82337531]
[1763361773708,0.67,141.05,141.0,3.54337531]
[1763361773926,0.67,141.04,141.0,2.82337531]
[1763361774611,0.67,141.04,140.99,2.82337531]
[1763361775228,0.67,141.04,140.99,3.54337531]
[1763361776128,0.67,141.04,140.98,29.7442455]
[1763361776320,3.49337531,141.04,140.99,2.82337531]
[1763361776719,0.67,141.03,140.99,2.82337531]
[1763361776934,0.67,141.09,141.03,22.6512]
[1763361777234,0.67,141.08,141.05,2.82337531]
[1763361778838,0.67,141.08,141.03,30.46173504]
[1763361779011,0.67,141.08,141.05,2.82337531]
[1763361779211,0.67,141.08,141.04,2.82337531]
[1763361780413,0.67,141.08,141.03,23.3712]
[1763361780634,0.67,141.08,141.04,2.82337531]
[1763361780825,13.282203,141.08,141.01,21.30908832]
[1763361781026,2.82337531,141.07,141.01,2.82337531]
[1763361781206,3.48337531,141.06,141.01,2.82337531]
[1763361781614,0.66,141.05,141.01,2.82337531]
[1763361782242,2.82337531,141.04,140.99,2.82337531]
[1763361782537,2.82337531,141.02,140.97,19.86337531]
[1763361782924,0.66,141.01,140.97,20.53337531]
[1763361783241,0.66,141.01,140.98,2.82337531]
[1763361787439,3.48337531,141.01,140.97,2.82337531]
[1763361787824,0.66,141.0,140.97,2.82337531]
[1763361789546,0.66,141.02,140.99,2.82337531]
[1763361790743,0.66,141.02,140.98,3.49337531]
[1763361790933,0.66,141.02,140.98,2.82337531]
[1763361792232,0.66,141.02,140.99,2.82337531]
[1763361794354,0.66,141.02,140.99,3.49337531]
[1763361794530,108.38337531,141.04,141.0,2.82337531]
[1763361794725,0.66,141.03,141.0,2.82337531]
[1763361794932,0.66,141.03,141.01,2.82337531]
[1763361796465,0.66,141.03,140.98,29.74435313]
[1763361796756,0.66,141.03,141.01,2.82337531]
[1763361797059,104.9,141.04,141.02,2.82337531]
[1763361797239,105.58,141.04,141.02,2.82337531]
[1763361797949,105.58,141.04,141.01,2.82337531]
[1763361798956,104.9,141.04,141.01,2.82337531]
[1763361799155,0.68,141.03,141.01,2.82337531]
[1763361799344,105.58,141.04,141.01,2.82337531]
[1763361800869,105.58,141.04,141.01,1.80627084]
[1763361802274,0.68,141.03,141.01,1.80627084]
[1763361803770,0.68,141.03,141.0,24.45747084]
[1763361806075,105.58,141.04,141.01,1.80627084]
[1763361809270,0.68,141.03,141.0,22.6512]
[1763361809477,0.68,141.03,141.01,1.80627084]
[1763361809856,0.68,141.03,141.0,24.45747084]
[1763361811356,0.68,141.03,141.0,22.6512]
[1763361812963,0.68,141.03,140.99,1.80627084]
[1763361814261,0.68,141.03,141.0,1.80627084]
[1763361818275,0.68,141.03,140.99,1.80627084]
[1763361819184,0.68,141.03,140.98,0.71]
[1763361819185,0.68,141.03,140.98,23.3612]
[1763361819383,2.48627084,141.03,140.99,1.80627084]
[1763361819781,0.71,141.02,140.98,24.45747084]
[1763361821386,0.71,141.02,140.98,22.6512]
[1763361821576,0.71,141.02,140.98,24.45747084]
[1763361822285,0.71,141.02,140.99,1.80627084]
[1763361823580,0.71,141.02,140.95,51.35448859]
[1763361823883,0.71,141.02,140.97,1.80627084]
[1763361825275,1.80627084,141.0,140.96,1.80627084]
[1763361825493,11.59509853,141.01,140.96,1.80627084]
[1763361825681,0.71,141.0,140.97,1.80627084]
[1763361826181,0.71,141.0,140.95,44.25982021]
[1763361826374,0.71,141.0,140.97,1.80627084]
[1763361827193,0.71,141.0,140.97,2.51627084]
[1763361827579,11.59509853,141.03,140.98,1.80627084]
[1763361827884,0.71,141.01,140.98,1.80627084]
[1763361828071,0.71,141.01,140.98,2.51627084]
[1763361828693,104.9,141.04,140.95,43.54982021]
[1763361828694,105.61,141.04,141.0,1.80627084]
[1763361828897,0.71,141.03,140.97,7.09369564]
[1763361829097,0.71,141.03,141.0,1.80627084]
[1763361831206,2.51627084,141.03,140.99,1.80627084]
[1763361831410,2.51627084,141.03,140.98,24.45747084]
[1763361831705,0.71,141.02,140.98,24.45747084]
[1763361833683,0.71,141.02,140.99,1.80627084]
[1763361837211,0.71,141.02,140.99,22.6512]
[1763361839119,0.71,141.02,140.98,24.45747084]
[1763361839320,0.71,141.02,140.98,25.16747084]
[1763361839692,0.71,141.02,140.98,1.80627084]
[1763361840425,0.71,141.02,140.98,2.51627084]
[1763361840899,0.71,141.02,140.98,1.80627084]
[1763361841100,2.51627084,141.02,140.97,1.80627084]
[1763361841423,0.71,141.02,140.97,2.48627084]
[1763361841722,0.66,141.01,140.98,1.80627084]
[1763361843223,0.66,141.01,140.98,2.48627084]
[1763361843419,0.66,141.03,140.99,2.48627084]
[1763361843720,0.66,141.03,141.01,1.80627084]
[1763361844030,105.56,141.04,141.01,1.80627084]
[1763361844199,0.66,141.03,141.01,1.80627084]
[1763361844400,0.66,141.03,140.98,7.09307895]
[1763361844706,0.66,141.03,141.0,1.80627084]
[1763361844910,0.66,141.03,141.01,1.80627084]
[1763361846629,0.66,141.03,141.0,1.80627084]
[1763361848710,0.66,141.03,141.0,2.48627084]
[1763361850530,0.66,141.03,141.0,1.80627084]
[1763361852731,0.66,141.03,140.97,7.09356233]
[1763361853039,2.46627084,141.03,140.98,1.80627084]
[1763361853429,0.66,141.02,140.98,1.80627084]
[1763361853619,0.66,141.02,140.98,2.48627084]
[1763361854522,0.66,141.02,140.99,1.80627084]
[1763361856036,0.66,141.02,140.98,1.80627084]
[1763361856215,2.46627084,141.02,140.98,1.80627084]
[1763361856417,2.46627084,141.02,140.97,25.13747084]
[1763361856738,0.66,141.01,140.97,25.13747084]
[1763361857127,0.66,141.01,140.98,1.80627084]
[1763361857444,0.66,141.01,140.98,2.47627084]
[1763361857624,1.80627084,141.03,141.0,1.80627084]
[1763361857625,0.66,141.03,141.0,1.80627084]
[1763361857830,0.66,141.03,141.01,1.80627084]
[1763361858953,0.66,141.03,141.0,1.80627084]
[1763361859540,0.66,141.03,141.0,2.47627084]
[1763361859941,0.66,141.03,140.99,1.80627084]
[1763361860239,2.46627084,141.03,140.97,0.67]
[1763361860430,2.46627084,141.03,140.98,1.80627084]
[1763361860738,0.66,141.02,140.98,1.80627084]
[1763361861239,2.46627084,141.02,140.97,2.47627084]
[1763361861444,2.46627084,141.02,140.97,1.80627084]
[1763361861614,0.66,141.01,140.97,2.47627084]
[1763361862930,0.66,141.01,140.97,3.49362954]
[1763361866442,21.31968873,141.07,141.0,5.64725908]
[1763361866443,0.66,141.07,141.0,5.64725908]
[1763361866744,0.66,141.07,141.04,2.82362954]
[1763361867623,0.66,141.07,141.05,2.82362954]
[1763361869127,0.66,141.07,141.04,2.82362954]
[1763361875442,2.82362954,141.11,141.06,2.82362954]
[1763361875639,0.65,141.1,141.08,2.82362954]
[1763361876126,0.65,141.1,141.07,2.82362954]
[1763361877855,0.65,141.1,141.06,2.82362954]
[1763361878051,3.47362954,141.1,141.05,2.82362954]
[1763361878449,0.65,141.09,141.05,3.51362954]
[1763361879137,0.65,141.09,141.06,2.82362954]
[1763361880055,0.65,141.09,141.07,2.82362954]
[1763361880935,9.98882769,141.13,141.08,33.25300646]
[1763361880936,0.2,141.13,141.08,33.25300646]
[1763361881136,0.2,141.13,141.11,2.82362954]
[1763361881752,0.2,141.13,141.12,3.51362954]
[1763361882555,0.2,141.13,141.12,2.82362954]
[1763361890437,0.85,141.13,141.08,29.73901709]
[1763361890753,0.85,141.13,141.09,2.82362954]
[1763361890948,0.65,141.12,141.08,25.47482954]
[1763361892575,3.47362954,141.12,141.08,25.47482954]
[1763361892779,3.47362954,141.12,141.08,22.6512]
[1763361892951,0.65,141.11,141.08,22.6512]
[1763361893841,0.65,141.11,141.07,2.82362954]
[1763361894066,3.47362954,141.11,141.06,2.82362954]
[1763361894563,3.47362954,141.1,141.06,2.82362954]
[1763361894950,0.65,141.09,141.06,2.82362954]
[1763361897068,2.82362954,141.08,141.05,39.6912]
[1763361897558,0.65,141.07,141.05,17.04]
[1763361899548,0.65,141.07,141.04,22.6512]
[1763361899755,0.65,141.07,141.03,2.82362954]
[1763361900571,3.47362954,141.07,141.02,22.6512]
[1763361900749,3.48362954,141.06,141.02,25.47482954]
[1763361900943,3.48362954,141.06,140.99,7.0923239]
[1763361900944,2.82362954,141.05,140.99,0.72]
[1763361901146,2.82362954,141.03,140.99,2.82362954]
[1763361901453,0.66,141.04,141.0,22.6512]
[1763361901648,2.82362954,141.04,141.0,22.6512]
[1763361901849,0.66,141.03,141.0,25.47482954]
[1763361902174,0.66,141.06,141.01,0.72]
[1763361902356,0.66,141.05,141.02,2.82362954]
[1763361904451,0.66,141.06,141.03,2.82362954]
[1763361904658,0.66,141.05,141.03,2.82362954]
[1763361905466,0.66,141.05,141.01,22.6512]
[1763361905675,3.48362954,141.05,141.01,25.47482954]
[1763361905847,2.82362954,141.05,141.01,25.47482954]
[1763361906054,0.66,141.04,141.01,25.47482954]
[1763361906575,0.66,141.04,141.01,22.6512]
[1763361906774,0.66,141.04,141.01,25.47482954]
[1763361909070,0.66,141.04,141.01,22.6512]
[1763361909372,0.66,141.04,141.02,2.82362954]
[1763361910879,3.48362954,141.09,141.03,26.19482954]
[1763361911173,0.66,141.1,141.07,2.82362954]
[1763361911572,0.66,141.1,141.05,23.3712]
[1763361911756,0.66,141.1,141.07,2.82362954]
[1763361912962,3.48362954,141.12,141.08,2.82362954]
[1763361913169,0.66,141.11,141.08,2.82362954]
[1763361914777,0.66,141.11,141.05,29.74050661]
[1763361914978,2.82362954,141.1,141.07,22.6512]
[1763361915161,0.66,141.09,141.07,22.6512]
[1763361915483,0.66,141.09,141.06,2.82362954]
[1763361915868,0.66,141.09,141.05,30.46050661]
[1763361916054,0.66,141.09,141.06,2.82362954]
[1763361917577,2.82362954,141.11,141.06,2.82362954]
[1763361917578,0.66,141.11,141.08,2.82362954]
[1763361917798,0.86,141.13,141.1,2.82362954]
[1763361918081,0.2,141.13,141.11,2.82362954]
[1763361918382,0.66,141.12,141.09,25.47482954]
[1763361918684,0.66,141.12,141.08,2.82362954]
[1763361919062,0.66,141.12,141.08,3.49362954]
[1763361919262,0.66,141.12,141.09,2.82362954]
[1763361922069,0.86,141.13,141.1,2.82362954]
[1763361922362,0.86,141.13,141.09,2.82362954]
[1763361922568,0.66,141.12,141.09,2.82362954]
[1763361922776,0.66,141.12,141.09,1.80410947]
[1763361923090,0.66,141.12,141.06,7.21643788]
[1763361923296,2.46410947,141.12,141.07,1.80410947]
[1763361923482,1.80410947,141.11,141.06,1.80410947]
[1763361923670,2.46410947,141.11,141.06,1.80410947]
[1763361923987,0.66,141.1,141.06,1.80410947]
[1763361924387,0.66,141.1,141.08,1.80410947]
[1763361924690,0.66,141.1,141.07,1.80410947]
[1763361934207,0.66,141.1,141.06,22.6512]
[1763361934380,0.66,141.1,141.06,24.45530947]
[1763361934898,0.66,141.1,141.06,1.80410947]
[1763361935308,1.80410947,141.09,141.04,24.45530947]
[1763361935487,1.80410947,141.07,141.02,1.80410947]
[1763361935991,0.68,141.06,141.02,1.80410947]
[1763361937397,0.68,141.06,141.02,2.49410947]
[1763361938005,2.48410947,141.06,141.02,1.80410947]
[1763361938185,1.80410947,141.05,141.0,17.04]
[1763361938393,1.80410947,141.05,141.01,1.80410947]
[1763361938394,0.68,141.04,141.01,1.80410947]
[1763361939277,0.68,141.04,141.01,2.49410947]
[1763361940299,0.68,141.04,141.01,1.80410947]
[1763361941203,1.80410947,141.02,140.98,3.70573578]
[1763361941384,9.78882769,141.03,140.96,2.49410947]
[1763361941584,1.80410947,141.01,140.96,2.49410947]
[1763361941787,0.68,141.02,140.98,1.80410947]
[1763361941999,0.68,141.03,140.99,1.80410947]
[1763361942185,0.68,141.02,140.99,2.49410947]
[1763361945490,1.80410947,141.04,141.0,1.80410947]
[1763361945695,0.68,141.04,141.0,2.49410947]
[1763361945905,0.68,141.04,141.01,2.49410947]
[1763361946112,2.48410947,141.06,141.02,1.80410947]
[1763361946411,1.80410947,141.06,141.02,1.80410947]
[1763361946622,0.68,141.05,141.02,1.80410947]
[1763361950599,0.68,141.06,141.03,24.45530947]
[1763361950797,0.68,141.06,141.03,25.14530947]
[1763361950997,106.70410947,141.09,141.05,1.80410947]
[1763361951218,0.68,141.1,141.06,1.80410947]
[1763361951526,1.80410947,141.11,141.06,1.80410947]
[1763361951722,2.48410947,141.1,141.06,1.80410947]
[1763361952225,0.68,141.09,141.06,1.80410947]
[1763361954831,0.2,141.13,141.07,1.80410947]
[1763361955145,0.68,141.1,141.07,1.80410947]
[1763361956697,0.68,141.1,141.06,22.6512]
[1763361956903,1.80410947,141.07,141.02,1.80410947]
[1763361957404,0.68,141.06,141.02,2.49410947]
[1763361957607,0.68,141.06,141.03,1.80410947]
[1763361957812,0.68,141.06,141.03,2.49410947]
[1763361958428,0.68,141.06,141.03,1.80410947]
[1763361961029,0.72,141.08,141.04,2.46410947]
[1763361961329,1.80410947,141.09,141.04,2.46410947]
[1763361961330,0.72,141.07,141.04,2.46410947]
[1763361961937,0.72,141.09,141.05,2.46410947]
[1763361962426,0.72,141.08,141.05,1.80410947]
[1763361963020,0.72,141.08,141.04,2.46410947]
[1763361963329,0.72,141.08,141.03,7.09067304]
[1763361963330,0.72,141.09,141.05,2.46410947]
[1763361963632,0.72,141.08,141.05,2.46410947]
[1763361963806,0.72,141.08,141.05,1.80410947]
[1763361964534,0.72,141.1,141.07,1.80410947]
[1763361964844,105.1,141.13,141.07,1.80410947]
[1763361965002,0.2,141.13,141.1,1.80410947]
[1763361965207,0.2,141.13,141.1,0.66]
[1763361965425,2.72410947,141.13,141.09,22.6512]
[1763361965623,2.72410947,141.13,141.08,1.80410947]
[1763361965825,0.72,141.12,141.08,2.46410947]
[1763361970654,0.72,141.12,141.09,1.80410947]
[1763361971046,0.72,141.12,141.08,2.46410947]
[1763361972053,0.72,141.12,141.1,1.80410947]
[1763361972252,0.2,141.13,141.1,1.80410947]
[1763361972452,0.92,141.13,141.1,2.46410947]
[1763361973059,0.92,141.13,141.1,1.80410947]
[1763361974062,0.92,141.13,141.1,2.46410947]
[1763361974264,0.2,141.13,141.12,1.80410947]
[1763361975055,0.2,141.13,141.12,2.46410947]
[1763361977858,0.2,141.13,141.1,30.42829208]
[1763361978066,0.2,141.13,141.12,1.80410947]
[1763361978967,0.2,141.13,141.12,2.49410947]
[1763361979148,0.2,141.13,141.12,32.23147727]
[1763361980364,0.2,141.13,141.12,25.14530947]
[1763361982855,0.2,141.13,141.12,26.15876769]
[1763361984178,0.2,141.13,141.12,33.24493549]
[1763361986981,0.2,141.13,141.12,26.15876769]
[1763361988163,0.2,141.13,141.12,22.6512]
[1763361988370,0.2,141.13,141.12,25.46876769]
[1763361988670,0.2,141.13,141.12,26.15876769]
[1763361990461,0.92,141.13,141.11,22.6512]
[1763361990675,2.81756769,141.12,141.08,17.04]
[1763361990982,3.53756769,141.12,141.08,17.04]
[1763361991182,3.53756769,141.11,141.08,17.04]
[1763361991706,0.72,141.1,141.08,17.04]
[1763361991981,2.81756769,141.09,141.08,16.32]
[1763361992360,3.53756769,141.09,141.08,16.32]
[1763361993358,0.72,141.09,141.08,16.32]
[1763361993558,0.72,141.09,141.06,3.48756769]
[1763361993954,0.72,141.09,141.05,2.81756769]
[1763361994174,0.72,141.09,141.06,22.6512]
[1763361994381,0.72,141.09,141.06,23.3212]
[1763361994563,0.72,141.09,141.06,22.6512]
[1763361996288,0.72,141.1,141.06,3.48756769]
[1763361996875,3.53756769,141.1,141.05,32.55834777]
[1763361997180,3.53756769,141.1,141.06,0.67]
[1763361997383,0.72,141.09,141.05,3.48756769]
[1763361998696,3.53756769,141.09,141.05,22.6512]
[1763361998878,2.81756769,141.08,141.05,22.6512]
[1763361999079,3.53756769,141.08,141.05,22.6512]
[1763361999291,0.72,141.07,141.05,22.6512]
[1763361999493,3.53756769,141.07,141.03,0.67]
[1763361999875,0.72,141.06,141.03,0.67]
[1763362001069,0.72,141.09,141.05,2.81756769]
[1763362001273,0.72,141.09,141.06,0.67]
[1763362001690,0.72,141.09,141.05,2.81756769]
[1763362001892,0.72,141.09,141.05,3.48756769]
[1763362002086,0.72,141.09,141.06,3.48756769]
[1763362002274,0.72,141.09,141.05,25.46876769]
[1763362002676,0.72,141.09,141.05,26.13876769]
[1763362007505,0.72,141.09,141.05,25.46876769]
[1763362007806,3.53756769,141.09,141.05,22.6512]
[1763362008110,3.53756769,141.09,141.05,23.3212]
[1763362008407,0.72,141.08,141.05,23.3212]
[1763362009880,2.81756769,141.07,141.03,2.81756769]
[1763362010119,2.81756769,141.07,141.02,3.48756769]
[1763362010311,0.72,141.06,141.02,3.48756769]
[1763362011222,0.72,141.06,141.03,0.67]
[1763362011522,0.72,141.07,141.03,26.13876769]
[1763362011814,0.72,141.07,141.04,3.48756769]
[1763362012223,0.72,141.1,141.06,2.81756769]
[1763362012590,0.72,141.1,141.06,3.48756769]
[1763362012915,0.72,141.1,141.07,2.81756769]
[1763362013100,0.72,141.1,141.06,3.48756769]
[1763362013899,0.72,141.1,141.07,0.67]
[1763362014222,0.72,141.1,141.06,2.81756769]
[1763362014416,0.72,141.1,141.06,3.48756769]
[1763362014801,0.72,141.1,141.05,22.6512]
[1763362015013,0.72,141.1,141.06,3.48756769]
[1763362017416,0.72,141.1,141.07,22.6512]
[1763362018423,0.72,141.1,141.07,25.46876769]
[1763362018622,0.72,141.1,141.07,26.13876769]
[1763362018831,0.72,141.1,141.07,3.48756769]
[1763362020801,0.68,141.1,141.08,3.47756769]
[1763362021002,0.68,141.12,141.08,3.47756769]
[1763362021209,0.68,141.12,141.08,0.66]
[1763362021747,0.68,141.12,141.08,3.47756769]
[1763362021926,0.68,141.12,141.09,2.81756769]
[1763362022110,0.68,141.12,141.09,0.66]
[1763362022834,0.68,141.12,141.08,2.81756769]
[1763362023012,0.68,141.12,141.08,3.47756769]
[1763362023194,3.49756769,141.12,141.07,32.55742159]
[1763362023395,2.81756769,141.11,141.08,22.6512]
[1763362023623,3.49756769,141.11,141.05,9.90707756]
[1763362023825,0.68,141.1,141.05,10.56707756]
[1763362024011,3.49756769,141.12,141.07,2.81756769]
[1763362024206,3.49756769,141.12,141.07,3.47756769]
[1763362024402,0.68,141.11,141.08,0.66]
[1763362024711,0.68,141.11,141.08,23.3112]
[1763362025121,0.68,141.11,141.08,22.6512]